bitfinex/quotes_BTCUSD_20241025
["timestamp","ask_amount","ask_price","bid_price","bid_amount"]
[1729896866000,0.22440477,66827.0,66818.0,0.149658]
[1729896866217,0.22440477,66827.0,66816.0,0.000824]
[1729896866429,0.22440477,66819.0,66816.0,0.000824]
[1729896866638,0.22440477,66827.0,66816.0,0.000824]
[1729896866859,0.804575,66826.0,66816.0,0.000824]
[1729896867957,0.15050381,66825.0,66816.0,0.000824]
[1729896868188,0.30014981,66825.0,66816.0,0.000824]
[1729896868400,0.15050381,66825.0,66816.0,0.000824]
[1729896868680,0.22440477,66817.0,66810.0,0.00290797]
[1729896868892,0.19624135,66816.0,66810.0,0.00290797]
[1729896869104,0.01363754,66815.0,66810.0,0.00290797]
[1729896869323,0.15050381,66814.0,66810.0,0.00290797]
[1729896869536,0.01363754,66813.0,66810.0,0.00290797]
[1729896869746,0.22440477,66811.0,66810.0,0.00290797]
[1729896870022,0.16414135,66811.0,66810.0,0.00290797]
[1729896871100,0.16414135,66811.0,66790.0,0.3111667]
[1729896871101,0.255,66803.0,66790.0,0.0117227]
[1729896871339,0.18376548,66811.0,66790.0,0.0117227]
[1729896871340,0.16414135,66802.0,66792.0,0.22440477]
[1729896871550,0.16414135,66802.0,66779.0,0.149747]
[1729896871551,0.01363754,66801.0,66779.0,0.149747]
[1729896871771,0.15050381,66800.0,66785.0,0.149732]
[1729896872020,0.22440477,66797.0,66786.0,0.449191]
[1729896872243,0.22440477,66797.0,66782.0,0.15]
[1729896872466,0.02179271,66809.0,66782.0,0.15]
[1729896872467,0.02179271,66809.0,66783.0,0.377903]
[1729896872710,0.22440477,66800.0,66796.0,0.149708]
[1729896872929,0.22440477,66800.0,66784.0,0.0808]
[1729896873152,0.02179271,66814.0,66785.0,0.15349779]
[1729896873362,0.22440477,66802.0,66798.0,0.149704]
[1729896873601,0.16412989,66813.0,66801.0,0.149697]
[1729896873602,0.15050381,66813.0,66801.0,0.149697]
[1729896873849,0.22440477,66801.0,66786.0,0.449194]
[1729896874055,0.22440477,66801.0,66768.0,0.002]
[1729896874056,0.22440477,66808.0,66798.0,0.149704]
[1729896874265,0.01363301,66807.0,66796.0,0.149708]
[1729896874475,0.01363301,66807.0,66797.0,0.149706]
[1729896874690,0.01363301,66807.0,66794.0,0.299425]
[1729896874906,0.01363301,66807.0,66788.0,0.299454]
[1729896875130,0.01363301,66807.0,66788.0,0.15050381]
[1729896875338,0.02380378,66806.0,66796.0,0.149707]
[1729896875746,0.02380378,66806.0,66797.0,0.149706]
[1729896876168,0.01363301,66807.0,66799.0,0.149701]
[1729896876392,0.01363301,66807.0,66795.0,0.299423]
[1729896876617,0.01363301,66807.0,66797.0,0.299414]
[1729896876836,0.01363301,66807.0,66789.0,0.22440477]
[1729896876837,0.22440477,66803.0,66785.0,0.299468]
[1729896877042,0.22440477,66803.0,66785.0,0.52387277]
[1729896877043,0.20164219,66802.0,66785.0,0.52387277]
[1729896877251,0.01364752,66801.0,66786.0,0.299463]
[1729896877697,0.01364752,66801.0,66788.0,0.299454]
[1729896877903,0.01364752,66801.0,66777.0,0.00531685]
[1729896877904,0.15050381,66800.0,66777.0,0.00531685]
[1729896878112,0.15050381,66800.0,66788.0,0.000824]
[1729896878113,0.23805229,66799.0,66788.0,0.000824]
[1729896878329,0.16415133,66798.0,66788.0,0.000824]
[1729896878543,0.16415133,66798.0,66789.0,0.149725]
[1729896878768,0.22440477,66799.0,66788.0,0.15055]
[1729896878769,0.01364752,66797.0,66788.0,0.15055]
[1729896878990,0.22440477,66799.0,66789.0,0.149724]
[1729896878991,0.01364752,66796.0,66789.0,0.149724]
[1729896879198,0.30435,66812.0,66788.0,0.000824]
[1729896879199,0.01364752,66795.0,66788.0,0.000824]
[1729896879409,0.01364752,66794.0,66791.0,0.149719]
[1729896879620,0.01364752,66793.0,66791.0,0.149719]
[1729896879833,0.02183284,66809.0,66789.0,0.149724]
[1729896879834,0.01364752,66792.0,66789.0,0.149724]
[1729896880048,0.01364752,66791.0,66790.0,0.449168]
[1729896880345,0.01364752,66791.0,66790.0,0.299445]
[1729896880558,0.22440477,66801.0,66790.0,0.299445]
[1729896880559,0.01364752,66800.0,66793.0,0.149715]
[1729896880768,0.15050381,66808.0,66793.0,0.149716]
[1729896880769,0.22440477,66794.0,66793.0,0.149716]
[1729896880984,0.01364752,66794.0,66792.0,0.149718]
[1729896881193,0.02183284,66806.0,66793.0,0.149716]
[1729896881408,0.22440477,66799.0,66793.0,0.149716]
[1729896881635,0.18602408,66805.0,66788.0,0.300275]
[1729896881636,0.01368743,66798.0,66791.0,0.449161]
[1729896881845,0.01368743,66797.0,66794.0,0.149713]
[1729896882053,0.01368743,66796.0,66794.0,0.149713]
[1729896882264,0.22440477,66803.0,66794.0,0.149714]
[1729896882265,0.01368743,66795.0,66794.0,0.149714]
[1729896882473,0.01368743,66795.0,66788.0,0.000824]
[1729896882717,0.15050381,66802.0,66788.0,0.000824]
[1729896882718,0.01369716,66794.0,66793.0,0.149716]
[1729896884293,0.03561262,66794.0,66793.0,0.149716]
[1729896885626,0.03561262,66794.0,66788.0,0.000824]
[1729896885832,0.804575,66798.0,66788.0,0.000824]
[1729896885833,0.804575,66798.0,66789.0,0.29945]
[1729896886044,0.22440477,66796.0,66792.0,0.149716]
[1729896886259,0.03569023,66795.0,66792.0,0.149716]
[1729896886473,0.03569023,66794.0,66793.0,0.149714]
[1729896886735,0.03571334,66794.0,66793.0,0.149714]
[1729896888291,0.84028834,66794.0,66793.0,0.149714]
[1729896889424,0.84028834,66794.0,66791.0,0.44916]
[1729896889668,0.03571334,66793.0,66792.0,0.149718]
[1729896889926,0.84028834,66793.0,66792.0,0.149718]
[1729896890628,0.82657292,66793.0,66792.0,0.149718]
[1729896890853,0.84032162,66793.0,66792.0,0.149718]
[1729896892206,0.8183237,66793.0,66792.0,0.149718]
[1729896893279,0.840345,66793.0,66792.0,0.149718]
[1729896894825,0.840345,66793.0,66791.0,0.299441]
[1729896894826,0.840345,66793.0,66791.0,0.24323211]
[1729896895039,0.804575,66793.0,66792.0,0.149718]
[1729896895263,0.840386,66793.0,66792.0,0.149718]
[1729896895697,0.790386,66793.0,66792.0,0.149718]
[1729896899181,0.79046021,66793.0,66792.0,0.149718]
[1729896900719,0.83425429,66793.0,66792.0,0.149718]
[1729896901133,0.79046021,66793.0,66792.0,0.149718]
[1729896902063,0.754575,66793.0,66792.0,0.149718]
[1729896902279,0.79047061,66793.0,66792.0,0.149718]
[1729896903125,0.79047061,66793.0,66792.0,0.30022181]
[1729896903334,0.79047061,66793.0,66792.0,0.30321593]
[1729896903563,0.79047061,66793.0,66792.0,0.30404093]
[1729896903795,0.79047061,66793.0,66792.0,0.30104681]
[1729896904004,0.79047061,66793.0,66792.0,0.30404084]
[1729896904431,0.79047061,66793.0,66792.0,0.30104681]
[1729896904942,0.79047061,66793.0,66792.0,0.000825]
[1729896905211,0.86968267,66793.0,66792.0,0.000825]
[1729896905456,0.83426469,66793.0,66792.0,0.000825]
[1729896905706,0.79047061,66793.0,66792.0,0.000825]
[1729896905947,0.85651259,66793.0,66792.0,0.000825]
[1729896906634,0.79047061,66793.0,66792.0,0.150543]
[1729896907071,0.83451448,66793.0,66792.0,0.150543]
[1729896909700,0.79047061,66793.0,66792.0,0.150543]
[1729896910616,0.79047061,66793.0,66792.0,0.30104681]
[1729896910844,0.768381,66793.0,66792.0,0.30104681]
[1729896911523,0.013806,66793.0,66792.0,0.30104681]
[1729896911740,0.013806,66793.0,66792.0,0.30604681]
[1729896911958,0.00165,66795.0,66794.0,0.149714]
[1729896912165,0.01545527,66795.0,66794.0,0.30021781]
[1729896912385,0.00165,66795.0,66794.0,0.30021781]
[1729896913334,0.01545138,66795.0,66794.0,0.30021781]
[1729896913565,0.00165,66795.0,66794.0,0.149714]
[1729896916068,0.01544758,66795.0,66794.0,0.149714]
[1729896916778,0.01544685,66795.0,66794.0,0.149714]
[1729896917249,0.77002185,66795.0,66794.0,0.149714]
[1729896919351,0.77002185,66795.0,66794.0,0.30021781]
[1729896920252,0.77002185,66795.0,66794.0,0.149714]
[1729896923715,0.77002185,66795.0,66792.0,0.000825]
[1729896923938,0.13936584,66794.0,66792.0,0.000825]
[1729896924157,0.05794849,66793.0,66792.0,0.000825]
[1729896924596,0.05794956,66793.0,66792.0,0.150543]
[1729896925021,0.81252489,66793.0,66792.0,0.150543]
[1729896925243,0.83460157,66793.0,66792.0,0.150543]
[1729896925459,0.81252489,66793.0,66792.0,0.150543]
[1729896925713,0.76837292,66793.0,66792.0,0.150543]
[1729896926346,0.79044891,66793.0,66792.0,0.150543]
[1729896927277,0.81252452,66793.0,66792.0,0.150543]
[1729896927708,0.754575,66793.0,66792.0,0.150543]
[1729896927928,0.81252402,66793.0,66792.0,0.150543]
[1729896931461,0.79872693,66793.0,66792.0,0.150543]
[1729896931672,0.76837179,66793.0,66792.0,0.000825]
[1729896931880,0.83459645,66793.0,66792.0,0.000825]
[1729896932592,0.79044634,66793.0,66792.0,0.150543]
[1729896933232,0.76837179,66793.0,66792.0,0.150543]
[1729896933499,0.76837179,66793.0,66792.0,0.000825]
[1729896933714,0.79044355,66793.0,66792.0,0.000825]
[1729896934675,0.7904436,66793.0,66792.0,0.000825]
[1729896935320,1.3469122,66793.0,66792.0,0.000825]
[1729896935557,1.3469122,66793.0,66762.0,9e-05]
[1729896935558,0.005,66788.0,66762.0,9e-05]
[1729896935785,0.005,66788.0,66773.0,0.22440477]
[1729896935786,0.08823661,66774.0,66773.0,0.22440477]
[1729896936008,0.08823661,66774.0,66765.0,0.149779]
[1729896936009,0.85660208,66774.0,66765.0,0.149779]
[1729896936249,0.04411679,66769.0,66768.0,0.149771]
[1729896936476,0.01379047,66769.0,66767.0,0.149774]
[1729896936698,0.06617519,66773.0,66767.0,0.149774]
[1729896936699,0.04411679,66773.0,66767.0,0.299548]
[1729896936920,0.04411679,66773.0,66763.0,0.299567]
[1729896936921,0.01377276,66772.0,66763.0,0.299567]
[1729896937171,0.04411679,66775.0,66763.0,0.299567]
[1729896937372,0.82075019,66777.0,66763.0,0.299567]
[1729896937373,0.2381782,66774.0,66773.0,0.149761]
[1729896937588,0.22440477,66774.0,66773.0,0.149761]
[1729896938232,0.754575,66777.0,66763.0,0.299567]
[1729896938498,0.754575,66777.0,66776.0,0.149754]
[1729896938936,0.76833581,66777.0,66776.0,0.149754]
[1729896940661,0.754575,66777.0,66776.0,0.149754]
[1729896941147,0.09323661,66791.0,66784.0,0.149736]
[1729896941148,0.754575,66785.0,66784.0,0.149736]
[1729896941362,0.99273693,66785.0,66784.0,0.149736]
[1729896941585,0.97897977,66785.0,66784.0,0.149736]
[1729896941797,0.76833208,66785.0,66784.0,0.149736]
[1729896942300,0.754575,66785.0,66784.0,0.149736]
[1729896946890,0.754575,66792.0,66777.0,0.005]
[1729896947109,0.22440477,66789.0,66778.0,0.15050381]
[1729896947325,0.22440477,66789.0,66788.0,0.149727]
[1729896947797,0.00165,66795.0,66794.0,0.149714]
[1729896948011,1.25555,66795.0,66794.0,0.149714]
[1729896948269,1.26931721,66795.0,66794.0,0.149714]
[1729896951183,0.01541721,66795.0,66794.0,0.149714]
[1729896951460,0.00165,66795.0,66794.0,0.149714]
[1729896952400,0.00165,66800.0,66799.0,0.154702]
[1729896952631,0.00165,66800.0,66799.0,0.30520581]
[1729896954637,0.00165,66800.0,66799.0,0.30819904]
[1729896955076,0.00165,66800.0,66799.0,0.31319904]
[1729896955378,0.00165,66800.0,66799.0,0.31020581]
[1729896955846,0.00165,66800.0,66799.0,0.31220581]
[1729896956775,1e-06,66800.0,66799.0,0.31020581]
[1729896958480,1e-06,66800.0,66799.0,0.31220581]
[1729896958721,1e-06,66800.0,66799.0,0.31720581]
[1729896960064,1.06559394,66829.0,66828.0,0.149637]
[1729896964117,1.06559394,66841.0,66828.0,0.30014081]
[1729896964366,1.06559394,66841.0,66840.0,0.149611]
[1729896964650,0.299249,66834.0,66806.0,0.299374]
[1729896964879,0.299249,66834.0,66801.0,0.1867]
[1729896964880,1.08428202,66833.0,66801.0,0.1867]
[1729896965104,0.27158808,66832.0,66806.0,0.29937]
[1729896965351,0.01368808,66831.0,66812.0,0.299344]
[1729896965582,0.299271,66829.0,66818.0,0.149659]
[1729896965819,0.01368808,66828.0,66800.0,0.005]
[1729896966039,0.01368808,66831.0,66806.0,0.005]
[1729896966278,0.01368808,66831.0,66822.0,0.14965]
[1729896966490,1.06559394,66830.0,66820.0,0.149654]
[1729896966717,0.22440477,66827.0,66820.0,0.149654]
[1729896966937,0.149656,66820.0,66807.0,0.22440477]
[1729896967173,1.06559394,66819.0,66807.0,0.22440477]
[1729896967417,1.06559394,66819.0,66799.0,0.22440477]
[1729896967418,0.299351,66811.0,66799.0,0.22440477]
[1729896967633,0.1497,66800.0,66799.0,0.22440477]
[1729896967865,1.06559394,66800.0,66799.0,0.22440477]
[1729896968114,1.06559394,66800.0,66794.0,0.299426]
[1729896968115,1.06559394,66800.0,66795.0,0.22739883]
[1729896968343,1.06559394,66800.0,66794.0,0.299426]
[1729896968344,1.06559394,66800.0,66799.0,0.149702]
[1729896969459,1.06559394,66800.0,66790.0,0.299443]
[1729896969675,1.06559394,66800.0,66797.0,0.149706]
[1729896969905,1.06559394,66800.0,66791.0,0.22440477]
[1729896969906,1.06559394,66800.0,66799.0,0.149702]
[1729896971328,1.06559394,66800.0,66796.0,0.299415]
[1729896971570,1.06559394,66800.0,66798.0,0.149704]
[1729896972215,1.06559394,66800.0,66799.0,0.149702]
[1729896973130,1.06559394,66807.0,66806.0,0.149687]
[1729896973378,1.06559394,66815.0,66814.0,0.149669]
[1729896973598,0.299279,66828.0,66807.0,0.15050381]
[1729896973825,0.22440477,66822.0,66808.0,0.748412]
[1729896974043,0.29928,66827.0,66818.0,0.149658]
[1729896974271,0.149645,66825.0,66819.0,0.149657]
[1729896974491,0.01372535,66824.0,66819.0,0.149657]
[1729896974720,0.149643,66826.0,66820.0,0.149655]
[1729896974721,0.01372535,66825.0,66820.0,0.149655]
[1729896975608,0.01372535,66825.0,66817.0,0.299323]
[1729896975826,0.14967,66814.0,66809.0,0.149679]
[1729896976044,0.22440477,66823.0,66791.0,0.22940477]
[1729896976045,0.0137284,66813.0,66810.0,0.22440477]
[1729896976303,0.149674,66812.0,66810.0,0.22440477]
[1729896976561,0.0137284,66811.0,66808.0,0.149682]
[1729896977060,1.06559394,66810.0,66802.0,0.149696]
[1729896977305,1.06559394,66810.0,66782.0,0.005]
[1729896977306,0.299365,66808.0,66790.0,0.299443]
[1729896977519,0.149702,66800.0,66799.0,0.22440477]
[1729896977751,0.1634304,66800.0,66799.0,0.22440477]
[1729896977971,0.149711,66795.0,66794.0,0.000821]
[1729896978190,0.31394321,66795.0,66794.0,0.000821]
[1729896978464,0.30021481,66795.0,66794.0,0.000821]
[1729896978689,0.31394147,66795.0,66794.0,0.000821]
[1729896979844,0.149716,66793.0,66788.0,0.22440477]
[1729896980065,1.37954041,66793.0,66789.0,0.149725]
[1729896980289,1.37954041,66793.0,66788.0,0.22440477]
[1729896980507,1.37954041,66793.0,66788.0,0.37413077]
[1729896980948,1.37954041,66793.0,66788.0,0.22440477]
[1729896982259,1.37952854,66793.0,66788.0,0.37413077]
[1729896982484,1.07930873,66793.0,66792.0,0.150539]
[1729896985825,1.07929842,66793.0,66792.0,0.150539]
[1729896986504,1.06559394,66793.0,66792.0,0.150539]
[1729896986711,1.07929765,66793.0,66792.0,0.150539]
[1729896989447,1.07929765,66793.0,66792.0,0.000821]
[1729896989879,1.37951746,66793.0,66792.0,0.000821]
[1729896990537,0.149734,66785.0,66782.0,0.22440477]
[1729896990751,0.31394152,66785.0,66782.0,0.22440477]
[1729896991183,0.31394152,66785.0,66774.0,0.22440477]
[1729896994698,0.149756,66776.0,66774.0,0.22440477]
[1729896994915,1.07847665,66775.0,66774.0,0.22440477]
[1729896995345,1.22823265,66775.0,66769.0,0.149769]
[1729896995554,0.01370371,66774.0,66770.0,0.149766]
[1729896995767,0.01370371,66773.0,66770.0,0.149766]
[1729896995980,0.01370371,66772.0,66770.0,0.149766]
[1729896996193,0.01370371,66771.0,66770.0,0.149766]
[1729896996425,1.06477294,66775.0,66770.0,0.149766]
[1729896996650,0.03566698,66774.0,66770.0,0.149766]
[1729896996838,0.01371807,66773.0,66770.0,0.149766]
[1729896997049,0.01371807,66772.0,66770.0,0.149766]
[1729896997259,0.01371807,66771.0,66770.0,0.149766]
[1729896998125,0.01371807,66771.0,66770.0,0.150587]
[1729896999415,0.02194891,66774.0,66770.0,0.150587]
[1729896999416,0.01371807,66774.0,66771.0,0.29953]
[1729896999625,0.01371807,66774.0,66773.0,0.149761]
[1729896999837,0.01371758,66774.0,66772.0,0.299526]
[1729897000060,0.01371758,66774.0,66773.0,0.149761]
[1729897000273,1.06477294,66774.0,66773.0,0.149761]
[1729897000503,1.07849068,66774.0,66773.0,0.149761]
[1729897001137,1.06477294,66774.0,66773.0,0.149761]
[1729897001390,1.07849165,66774.0,66773.0,0.149761]
[1729897001847,0.01371871,66774.0,66770.0,0.000821]
[1729897002069,1.06477294,66782.0,66770.0,0.000821]
[1729897002070,0.149765,66771.0,66770.0,0.000821]
[1729897002293,0.16348371,66771.0,66770.0,0.000821]
[1729897002743,0.42943204,66771.0,66770.0,0.000821]
[1729897002975,0.42943204,66771.0,66739.0,0.02344119]
[1729897002976,0.42943204,66771.0,66719.0,0.149882]
[1729897002977,0.149864,66728.0,66719.0,0.149882]
[1729897003207,0.005,66723.0,66712.0,0.02032681]
[1729897003429,0.01371146,66722.0,66712.0,0.02032681]
[1729897003650,1.06477294,66727.0,66716.0,0.299776]
[1729897003651,0.01371146,66725.0,66716.0,0.299776]
[1729897003866,0.01371146,66724.0,66712.0,0.02032681]
[1729897004090,0.01371146,66726.0,66712.0,0.02032681]
[1729897004529,1.06477294,66727.0,66713.0,0.149895]
[1729897004530,0.01371146,66725.0,66713.0,0.149895]
[1729897004748,0.005,66723.0,66712.0,0.01617381]
[1729897004974,0.16358646,66722.0,66712.0,0.01617381]
[1729897005193,0.01371146,66721.0,66712.0,0.01617381]
[1729897005406,0.005,66723.0,66712.0,0.01617381]
[1729897005407,0.01371146,66722.0,66712.0,0.01617381]
[1729897005625,0.01371146,66721.0,66712.0,0.01617381]
[1729897005844,0.01371146,66722.0,66712.0,0.01617381]
[1729897006064,0.01371146,66721.0,66712.0,0.01617381]
[1729897006289,0.01371146,66720.0,66712.0,0.01617381]
[1729897006519,0.005,66723.0,66712.0,0.01617381]
[1729897006520,0.01371146,66722.0,66712.0,0.01617381]
[1729897006748,1.07844185,66721.0,66712.0,0.01617381]
[1729897006973,0.01366891,66720.0,66712.0,0.01617381]
[1729897007191,0.01366891,66719.0,66712.0,0.01617381]
[1729897007445,0.01366891,66718.0,66712.0,0.01617381]
[1729897007658,0.01866891,66717.0,66712.0,0.01617381]
[1729897007879,0.01366891,66716.0,66712.0,0.01617381]
[1729897008098,0.299767,66719.0,66715.0,0.22484036]
[1729897008099,0.02185326,66719.0,66715.0,0.22484036]
[1729897008332,0.02185326,66719.0,66712.0,0.01617381]
[1729897008333,0.149886,66718.0,66712.0,0.01617381]
[1729897008553,0.005,66719.0,66712.0,0.01617381]
[1729897008554,0.01365947,66717.0,66712.0,0.01617381]
[1729897008777,0.005,66717.0,66712.0,0.01617381]
[1729897008993,0.01365947,66716.0,66715.0,0.22484036]
[1729897009255,0.01365947,66716.0,66712.0,0.01617381]
[1729897009701,0.22484036,66713.0,66712.0,0.01617381]
[1729897009925,0.31905828,66713.0,66712.0,0.01617381]
[1729897010140,0.31905828,66713.0,66699.0,0.22484036]
[1729897010141,0.149914,66705.0,66699.0,0.22484036]
[1729897010365,0.16357547,66704.0,66699.0,0.22484036]
[1729897010582,0.01361954,66704.0,66699.0,0.22484036]
[1729897010804,0.01361954,66704.0,66690.0,0.299893]
[1729897010805,0.2998,66711.0,66690.0,0.22484036]
[1729897010806,0.005,66694.0,66690.0,0.22484036]
[1729897011020,0.005,66698.0,66690.0,0.22484036]
[1729897011240,0.005,66698.0,66684.0,0.00299882]
[1729897011448,0.149935,66696.0,66685.0,0.05277762]
[1729897011663,0.005,66698.0,66685.0,0.05277762]
[1729897011664,0.01361954,66695.0,66685.0,0.05277762]
[1729897011871,0.005,66698.0,66685.0,0.05277762]
[1729897012085,0.15493,66698.0,66685.0,0.05277762]
[1729897012306,1.4923599,66697.0,66685.0,0.20273562]
[1729897012529,1.4923599,66697.0,66672.0,0.00509]
[1729897012530,0.149985,66673.0,66672.0,9e-05]
[1729897012749,1.2539,66673.0,66672.0,9e-05]
[1729897013419,1.2539,66673.0,66672.0,0.150078]
[1729897013634,0.059997,66690.0,66673.0,0.299967]
[1729897013635,1.2539,66689.0,66673.0,0.299967]
[1729897013859,0.22484036,66678.0,66672.0,9e-05]
[1729897014100,0.149972,66679.0,66672.0,9e-05]
[1729897014317,0.005,66681.0,66672.0,9e-05]
[1729897014536,0.29994,66680.0,66672.0,9e-05]
[1729897014762,0.005,66681.0,66672.0,9e-05]
[1729897015664,0.005,66681.0,66672.0,0.0300978]
[1729897015893,0.17222214,66688.0,66672.0,0.0300978]
[1729897015894,0.02171833,66688.0,66673.0,0.15050381]
[1729897016128,0.22484036,66684.0,66673.0,0.15050381]
[1729897016568,0.02171833,66688.0,66674.0,0.0029992]
[1729897016814,0.02171833,66688.0,66687.0,0.149954]
[1729897017506,0.02171833,66688.0,66672.0,9e-05]
[1729897017507,0.005,66673.0,66672.0,9e-05]
[1729897017739,1.41188383,66673.0,66672.0,9e-05]
[1729897017970,0.005,66672.0,66658.0,0.0175053]
[1729897018185,0.150017,66659.0,66658.0,0.0175053]
[1729897018407,0.005,66659.0,66658.0,0.0175053]
[1729897018622,0.155017,66659.0,66658.0,0.0175053]
[1729897018830,0.005,66659.0,66658.0,0.0175053]
[1729897019521,0.005,66666.0,66659.0,0.150016]
[1729897019741,1.403891,66671.0,66658.0,0.0175053]
[1729897019742,1.2539,66669.0,66660.0,0.00299999]
[1729897019955,1.2539,66669.0,66661.0,0.300025]
[1729897020171,1.2539,66669.0,66668.0,0.149997]
[1729897020881,1.2539,66669.0,66667.0,0.0764]
[1729897020882,1.2539,66685.0,66667.0,0.0764]
[1729897021092,0.02171833,66688.0,66676.0,0.299955]
[1729897021313,0.02171833,66688.0,66672.0,0.000822]
[1729897021532,0.02171833,66688.0,66682.0,0.299929]
[1729897021752,0.02171833,66688.0,66682.0,0.299928]
[1729897022007,0.02171833,66688.0,66682.0,0.29993]
[1729897022224,0.02171833,66688.0,66684.0,0.299919]
[1729897022435,0.02171833,66688.0,66687.0,0.149954]
[1729897022658,0.02171833,66688.0,66675.0,0.29996]
[1729897022867,0.02171833,66688.0,66676.0,0.00299905]
[1729897023082,0.02171833,66688.0,66686.0,0.149955]
[1729897023324,0.02171833,66688.0,66687.0,0.149954]
[1729897024205,1.2589,66698.0,66686.0,0.30290686]
[1729897024424,1.2589,66698.0,66687.0,0.299908]
[1729897024667,0.005,66701.0,66692.0,0.149941]
[1729897024881,0.005,66701.0,66678.0,0.1737]
[1729897024882,0.00799883,66701.0,66689.0,0.299896]
[1729897025092,1.2539,66704.0,66679.0,0.299944]
[1729897025093,0.005,66702.0,66690.0,0.00299853]
[1729897025308,0.005,66702.0,66682.0,0.005]
[1729897025526,1.2539,66704.0,66703.0,0.149918]
[1729897025740,0.005,66709.0,66687.0,0.30290632]
[1729897025972,0.005,66709.0,66687.0,0.005]
[1729897026189,1.2589,66711.0,66689.0,0.299899]
[1729897026402,1.2539,66712.0,66690.0,0.0029982]
[1729897026612,1.2539,66712.0,66707.0,0.299818]
[1729897026613,0.22484036,66709.0,66707.0,0.299818]
[1729897026828,0.22484036,66709.0,66692.0,0.299886]
[1729897027036,0.00799883,66714.0,66698.0,0.22484036]
[1729897027249,0.22484036,66711.0,66705.0,0.149912]
[1729897027461,0.00799883,66714.0,66700.0,0.149925]
[1729897027670,0.005,66714.0,66702.0,0.299841]
[1729897027899,1.255544,66716.0,66703.0,0.15350179]
[1729897028144,1.255544,66716.0,66712.0,0.149897]
[1729897028361,0.001644,66716.0,66714.0,0.149893]
[1729897028813,0.001644,66716.0,66715.0,0.149891]
[1729897029294,0.001644,66716.0,66715.0,0.30039481]
[1729897029726,0.001644,66716.0,66715.0,0.30339216]
[1729897030007,0.001644,66716.0,66715.0,0.30039481]
[1729897030220,0.001644,66716.0,66715.0,0.30339195]
[1729897031309,0.001644,66716.0,66715.0,0.30039481]
[1729897031518,0.001644,66716.0,66715.0,0.56979339]
[1729897031962,0.001644,66716.0,66709.0,0.0764]
[1729897032195,0.001644,66716.0,66705.0,0.299827]
[1729897032429,0.001644,66716.0,66709.0,0.22484036]
[1729897032650,0.001644,66716.0,66707.0,0.149909]
[1729897032861,0.001644,66716.0,66708.0,0.30040881]
[1729897033083,0.01367312,66715.0,66709.0,0.149904]
[1729897033292,0.01367312,66714.0,66710.0,0.149902]
[1729897033501,0.01367312,66713.0,66708.0,0.45031381]
[1729897033733,0.001644,66716.0,66709.0,0.149904]
[1729897033952,0.0136753,66715.0,66710.0,0.15050381]
[1729897034168,0.001644,66716.0,66710.0,0.15050381]
[1729897034169,0.001644,66716.0,66715.0,0.149891]
[1729897035490,0.001644,66716.0,66715.0,0.30039481]
[1729897035719,0.001644,66716.0,66715.0,0.44285653]
[1729897036588,0.001644,66716.0,66715.0,0.71345653]
[1729897036807,0.0218837,66745.0,66744.0,0.149826]
[1729897037035,0.2604036,66745.0,66744.0,0.149826]
[1729897037248,0.2604036,66745.0,66744.0,0.1648086]
[1729897037249,0.03556324,66745.0,66744.0,0.1648086]
[1729897037460,0.01367954,66745.0,66744.0,0.1648086]
[1729897039188,0.01367954,66753.0,66744.0,0.0149826]
[1729897039461,0.01367954,66752.0,66746.0,0.149819]
[1729897039752,0.01367954,66752.0,66738.0,0.299677]
[1729897039753,0.005,66736.0,66718.0,0.22484036]
[1729897040000,0.005,66734.0,66732.0,0.22484036]
[1729897040288,0.01367954,66733.0,66725.0,0.22484036]
[1729897040506,0.01367954,66732.0,66727.0,0.149863]
[1729897040762,0.01367954,66733.0,66728.0,0.149861]
[1729897041018,0.00799883,66734.0,66728.0,0.149861]
[1729897041250,0.0136491,66732.0,66727.0,0.149863]
[1729897041511,0.01364754,66733.0,66727.0,0.149863]
[1729897041758,0.01364754,66733.0,66728.0,0.14986]
[1729897041985,0.01364754,66733.0,66727.0,0.299728]
[1729897042233,0.01364754,66734.0,66732.0,0.149853]
[1729897042477,0.005,66738.0,66728.0,0.08243094]
[1729897042478,0.01364754,66737.0,66728.0,0.08243094]
[1729897042745,0.01364754,66736.0,66731.0,0.149854]
[1729897042987,0.01364754,66735.0,66731.0,0.149854]
[1729897043239,0.16348954,66737.0,66731.0,0.149854]
[1729897043499,0.01364754,66736.0,66731.0,0.149854]
[1729897043732,0.01364754,66735.0,66727.0,0.15050381]
[1729897043958,0.01364754,66734.0,66727.0,0.15050381]
[1729897044188,0.01364754,66733.0,66727.0,0.15050381]
[1729897044420,0.01364754,66732.0,66727.0,0.38286213]
[1729897044650,0.01365567,66731.0,66727.0,0.23299913]
[1729897044887,0.01365567,66737.0,66728.0,0.14986]
[1729897045121,0.01365567,66736.0,66727.0,0.15050381]
[1729897045463,0.02984791,66738.0,66731.0,0.149855]
[1729897045464,0.01365567,66735.0,66731.0,0.149855]
[1729897045554,0.01365567,66735.0,66728.0,0.149861]
[1729897045788,0.01365567,66734.0,66729.0,0.149859]
[1729897046001,0.01365567,66733.0,66727.0,0.24798533]
[1729897046222,0.01365567,66732.0,66728.0,0.05959024]
[1729897046429,0.01365567,66738.0,66730.0,0.149856]
[1729897046648,0.01365567,66737.0,66728.0,0.20945024]
[1729897046861,0.01365567,66736.0,66728.0,0.2844306]
[1729897047215,0.01365567,66735.0,66729.0,0.149858]
[1729897047411,0.01365567,66734.0,66728.0,0.2844306]
[1729897047631,0.01365567,66733.0,66728.0,0.2844306]
[1729897047870,0.01365567,66732.0,66730.0,0.149857]
[1729897048076,0.01365567,66734.0,66733.0,0.14985]
[1729897048301,0.001646,66735.0,66734.0,0.149848]
[1729897048523,0.01533134,66735.0,66734.0,0.149848]
[1729897048753,0.01533134,66735.0,66734.0,0.25166715]
[1729897048982,0.001646,66735.0,66734.0,0.66157096]
[1729897049197,0.001646,66735.0,66734.0,0.65857435]
[1729897049607,0.001646,66735.0,66734.0,0.65357435]
[1729897050290,0.01535844,66735.0,66724.0,0.0764]
[1729897050534,0.01371244,66734.0,66725.0,0.37534417]
[1729897050739,0.03565333,66733.0,66725.0,0.37534417]
[1729897050945,0.01371244,66732.0,66726.0,0.09063612]
[1729897051159,0.01371244,66731.0,66727.0,0.15050381]
[1729897051368,0.01371244,66730.0,66727.0,0.15050381]